[Event "FIDE World Rapid-ch Open 2018"]
[White "Sargissian, Gabriel"]
[Black "Sanikidze, Tornike"]
[Site "St. Petersburg"]
[Round "1.44"]
[Annotator "ChessBase"]
[Result "1-0"]
[Date "2018.12.26"]
[WhiteElo "2689"]
[BlackElo "2507"]
[PlyCount "139"]
[TimeControl "900+10"]

1. d4 {[%emt 0:0:0]} d5 {[%emt 0:0:0]} 2. c4 {[%emt 0:0:0]} e6 {[%emt 0:0:0]} 3. Nf3 {[%emt 0:0:3]} Nf6 {[%emt 0:0:11]} 4. g3 {[%emt 0:0:1]} dxc4 {[%emt 0:0:15]} 5. Bg2 {[%emt 0:0:8]} Nc6 {[%emt 0:0:6]} 6. Qa4 {[%emt 0:0:45]
} Bb4+ {[%emt 0:0:2]} 7. Bd2 {[%emt 0:0:2]} Nd5 {[%emt 0:0:0]} 8. Bxb4 {[%emt 0:1:4]} Ndxb4 {[%emt 0:0:3]} 9. 0-0 {[%emt 0:0:22]} Rb8 {[%emt 0:0:25]} 10. Na3 {[%emt 0:3:33]} 0-0 {[%emt 0:0:11]} 11. Qb5 {[%emt 0:0:22]
} b6 {[%emt 0:0:3]} 12. Qxc4 {[%emt 0:0:28]} Ba6 {[%emt 0:0:0]} 13. Nb5 {[%emt 0:0:31]} Qd5 {[%emt 0:0:2]} 14. Qxd5 {[%emt 0:0:18]} Nxd5 {[%emt 0:0:2]} 15. a4 {[%emt 0:0:27]} Na5 {[%emt 0:0:2]} 16. Ne5 {[%emt 0:0:48]
} Rbd8 {[%emt 0:0:4]} 17. Bxd5 {[%emt 0:2:33]} Bxb5 {[%emt 0:0:0]} 18. axb5 {[%emt 0:0:18]} Rxd5 {[%emt 0:0:10]} 19. b4 {[%emt 0:1:30]} Nb3 {[%emt 0:0:22]} 20. Nc6 {[%emt 0:0:9]} Nxa1 {[%emt 0:1:1]} 21. Ne7+ {[%emt 0:0:2]
} Kh8 {[%emt 0:0:1]} 22. Nxd5 {[%emt 0:0:2]} Nc2 {[%emt 0:0:0]} 23. Nc3 {[%emt 0:1:34]} Nxb4 {[%emt 0:5:26]} 24. Ra1 {[%emt 0:0:2]} Ra8 {[%emt 0:0:2]} 25. Ra4 {[%emt 0:0:12]} Nd5 {[%emt 0:2:7]} 26. Nxd5 {[%emt 0:0:5]
} exd5 {[%emt 0:0:1]} 27. Ra3 {[%emt 0:0:23]} Kg8 {[%emt 0:0:0]} 28. Rc3 {[%emt 0:0:25]} Rc8 {[%emt 0:0:2]} 29. Ra3 {[%emt 0:0:20]} Ra8 {[%emt 0:4:46]} 30. Rc3 {[%emt 0:0:4]} Rc8 {[%emt 0:0:10]} 31. Ra3 {[%emt 0:0:1]
} c5 {[%emt 0:0:31]} 32. Rxa7 {[%emt 0:0:55]} Kf8 {[%emt 0:0:0]} 33. Ra6 {[%emt 0:0:34]} c4 {[%emt 0:0:14]} 34. Ra2 {[%emt 0:0:35]} Ke7 {[%emt 0:0:4]} 35. e3 {[%emt 0:0:9]} c3 {[%emt 0:1:15]} 36. Rc2 {[%emt 0:0:0]} Rc4 {[%emt 0:0:2]} 37. Kf1 {[%emt 0:0:3]} Kd7 {[%emt 0:0:1]} 38. Ke2 {[%emt 0:0:9]} Rb4 {[%emt 0:0:2]} 39. Rxc3 {[%emt 0:0:26]} Rxb5 40. Rc2 {[%emt 0:0:53]} h5 {[%emt 0:0:6]} 41. h4 {[%emt 0:0:7]} g6 {[%emt 0:0:0]} 42. Kf3 {[%emt 0:0:2]} Ra5 {[%emt 0:0:32]} 43. Kf4 {[%emt 0:0:6]} f6 {[%emt 0:0:1]} 44. f3 {[%emt 0:0:4]} Ra8 {[%emt 0:0:15]} 45. g4 {[%emt 0:1:10]
} hxg4 {[%emt 0:0:1]} 46. fxg4 {[%emt 0:0:0]} Ra1 {[%emt 0:0:0]} 47. Rh2 {[%emt 0:0:13]} Rf1+ {[%emt 0:0:26]} 48. Kg3 {[%emt 0:0:2]} Rg1+ {[%emt 0:0:10]} 49. Kf3 {[%emt 0:0:2]} Rf1+ {[%emt 0:0:1]} 50. Ke2 {[%emt 0:0:32]
} Ra1 {[%emt 0:0:6]} 51. Rh3 {[%emt 0:0:3]} Ke6 {[%emt 0:0:0]} 52. h5 {[%emt 0:0:3]} g5 {[%emt 0:0:1]} 53. h6 {[%emt 0:0:2]} Ra8 {[%emt 0:0:2]
} 54. h7 {[%emt 0:0:23]} Rh8 {[%emt 0:0:1]} 55. Kd3 {[%emt 0:0:0]} Kf7 {[%emt 0:0:16]} 56. e4 {[%emt 0:0:9]} dxe4+ {[%emt 0:0:22]} 57. Kxe4 {[%emt 0:0:1]} Kg7 {[%emt 0:0:2]} 58. d5 {[%emt 0:0:20]} b5 {[%emt 0:0:0]} 59. d6 {[%emt 0:0:9]} b4 {[%emt 0:0:7]} 60. Kf5 {[%emt 0:0:33]} Kf7 {[%emt 0:0:17]} 61. Re3 {[%emt 0:0:15]} b3 {[%emt 0:0:12]} 62. Rxb3 {[%emt 0:0:13]
} Kg7 {[%emt 0:0:6]} 63. Rb7+ {[%emt 0:0:11]} Kh6 {[%emt 0:0:0]} 64. Rb1 {[%emt 0:0:19]} Kg7 {[%emt 0:0:10]} 65. Rh1 {[%emt 0:0:3]} Kf7 {[%emt 0:0:9]} 66. Ra1 {[%emt 0:0:11]} Kg7 {[%emt 0:0:1]} 67. Ra7+ {[%emt 0:0:2]
} Kh6 {[%emt 0:0:1]} 68. d7 {[%emt 0:0:4]} Rb8 {[%emt 0:0:0]} 69. Kxf6 {[%emt 0:0:9]} Rd8 {[%emt 0:0:11]} 70. Ke7 {[%emt 0:0:7]} 1-0

[Event "FIDE World Rapid-ch Open 2018"]
[White "Belyakov, Bogdan"]
[Black "Shirov, Alexei"]
[Site "St. Petersburg"]
[Round "1.45"]
[Annotator "ChessBase"]
[Result "0-1"]
[Date "2018.12.26"]
[WhiteElo "2459"]
[BlackElo "2643"]
[PlyCount "75"]
[TimeControl "900+10"]

1. e4 {[%emt 0:0:0]} e5 {[%emt 0:0:0]} 2. Nf3 {[%emt 0:0:29]} Nc6 {[%emt 0:0:17]
} 3. Bc4 {[%emt 0:0:4]} Bc5 {[%emt 0:0:3]} 4. c3 {[%emt 0:0:0]} Nf6 {[%emt 0:0:2]} 5. d4 {[%emt 0:1:19]} exd4 {[%emt 0:0:3]} 6. cxd4 {[%emt 0:0:2]} Bb4+ {[%emt 0:0:1]} 7. Bd2 {[%emt 0:0:13]} Nxe4 {[%emt 0:0:0]} 8. Bxb4 {[%emt 0:4:51]} Nxb4 {[%emt 0:0:2]} 9. Qb3 {[%emt 0:0:0]} Qe7 {[%emt 0:2:45]} 10. 0-0 {[%emt 0:0:10]} d5 {[%emt 0:1:16]} 11. Bxd5 {[%emt 0:0:39]
} Nxd5 {[%emt 0:0:5]} 12. Qxd5 {[%emt 0:0:2]} 0-0 {[%emt 0:0:0]} 13. Re1 {[%emt 0:0:11]} Nf6 {[%emt 0:0:2]} 14. Qc5 {[%emt 0:1:10]} Qxc5 {[%emt 0:3:48]} 15. dxc5 {[%emt 0:0:3]} Bg4 {[%emt 0:0:1]} 16. Ne5 {[%emt 0:0:36]
} Rad8 {[%emt 0:0:2]} 17. Nc3 {[%emt 0:0:10]} Rd2 {[%emt 0:0:0]} 18. b4 {[%emt 0:0:6]} Be6 {[%emt 0:1:7]} 19. a3 {[%emt 0:1:1]} Rfd8 {[%emt 0:1:30]} 20. Nb5 {[%emt 0:1:14]} Ne8 {[%emt 0:0:46]} 21. Nxa7 {[%emt 0:1:4]
} c6 {[%emt 0:0:2]} 22. b5 {[%emt 0:0:1]} cxb5 {[%emt 0:0:0]} 23. Nxb5 {[%emt 0:0:2]} R2d5 {[%emt 0:0:1]} 24. Rac1 {[%emt 0:1:4]} Rc8 {[%emt 0:0:1]} 25. f4 {[%emt 0:0:5]} g6 {[%emt 0:0:46]} 26. Kf2 {[%emt 0:1:23]
} Rdxc5 {[%emt 0:2:34]} 27. Rxc5 {[%emt 0:0:3]} Rxc5 {[%emt 0:0:0]} 28. Nd4 {[%emt 0:0:1]} Nc7 {[%emt 0:0:7]} 29. g3 {[%emt 0:0:56]} Kg7 {[%emt 0:0:17]} 30. h4 {[%emt 0:0:6]} Bd5 {[%emt 0:0:18]} 31. Re2 {[%emt 0:0:36]
} Ne6 {[%emt 0:0:26]} 32. Rd2 {[%emt 0:0:46]} Nxd4 {[%emt 0:0:0]} 33. Rxd4 {[%emt 0:0:1]} f6 {[%emt 0:0:2]} 34. Nd7 {[%emt 0:0:27]} Rc2+ {[%emt 0:0:2]} 35. Ke3 {[%emt 0:0:6]} Be6 {[%emt 0:0:2]} 36. Rd6 {[%emt 0:0:43]
} Kf7 {[%emt 0:0:3]} 37. a4 {[%emt 0:0:7]} Ke8 38. Kd4 0-1

[Event "FIDE World Rapid-ch Open 2018"]
[White "Melkumyan, Hrant"]
[Black "Sokolov, Andrei"]
[Site "St. Petersburg"]
[Round "1.46"]
[Annotator "ChessBase"]
[Result "0-1"]
[Date "2018.12.26"]
[WhiteElo "2670"]
[BlackElo "2532"]
[PlyCount "104"]
[TimeControl "900+10"]

1. e4 {[%emt 0:0:0]} d6 {[%emt 0:0:1]} 2. d4 {[%emt 0:0:4]} Nf6 {[%emt 0:0:0]} 3. Bd3 {[%emt 0:0:7]} e5 {[%emt 0:0:4]} 4. c3 {[%emt 0:0:3]} d5 {[%emt 0:0:20]
} 5. dxe5 {[%emt 0:0:14]} Nxe4 {[%emt 0:0:2]} 6. Nf3 {[%emt 0:0:0]} Nc6 {[%emt 0:0:35]} 7. Nbd2 {[%emt 0:1:34]} Nc5 {[%emt 0:0:40]} 8. Bc2 {[%emt 0:0:14]} Bg4 {[%emt 0:0:12]} 9. 0-0 {[%emt 0:0:43]} Be7 {[%emt 0:0:0]} 10. Re1 {[%emt 0:0:37]} Qd7 {[%emt 0:0:36]} 11. b4 {[%emt 0:4:6]} Ne6 {[%emt 0:0:2]} 12. Nb3 {[%emt 0:0:8]} Bh5 {[%emt 0:1:27]} 13. Bf5 {[%emt 0:0:23]
} Bg6 {[%emt 0:0:42]} 14. Bh3 {[%emt 0:0:3]} 0-0 {[%emt 0:0:0]} 15. Be3 {[%emt 0:2:4]} Bh5 {[%emt 0:1:42]} 16. Bc5 {[%emt 0:1:11]} b6 {[%emt 0:0:8]} 17. Bd4 {[%emt 0:1:15]} Rfd8 {[%emt 0:1:45]} 18. a3 {[%emt 0:2:15]
} Bf8 {[%emt 0:1:4]} 19. Re3 {[%emt 0:0:55]} Qe8 {[%emt 0:0:0]} 20. Qd2 {[%emt 0:1:1]} a5 {[%emt 0:0:13]} 21. b5 {[%emt 0:0:20]} a4 {[%emt 0:0:0]
} 22. Nc1 {[%emt 0:0:36]} Na5 {[%emt 0:0:2]} 23. Re1 {[%emt 0:0:0]} Qxb5 {[%emt 0:0:35]} 24. Bf5 {[%emt 0:0:10]} Bg6 {[%emt 0:0:28]} 25. g4 {[%emt 0:0:10]} Nc4 {[%emt 0:0:25]} 26. Qe2 {[%emt 0:0:6]} Nf4 {[%emt 0:0:0]} 27. Qf1 {[%emt 0:0:0]} Nxa3 {[%emt 0:0:5]} 28. Ne2 {[%emt 0:0:12]} Bxf5 {[%emt 0:2:10]} 29. gxf5 {[%emt 0:0:4]} Qd3 {[%emt 0:0:9]} 30. Nh4 {[%emt 0:0:21]
} Nc2 {[%emt 0:1:58]} 31. Nxf4 {[%emt 0:0:14]} Qxf1+ {[%emt 0:0:0]} 32. Kxf1 {[%emt 0:0:5]} c5 {[%emt 0:0:19]} 33. Be3 {[%emt 0:0:1]} d4 {[%emt 0:0:5]} 34. cxd4 {[%emt 0:0:3]} cxd4 {[%emt 0:0:1]} 35. Bd2 {[%emt 0:0:2]
} b5 {[%emt 0:0:12]} 36. e6 {[%emt 0:0:1]} Nxe1 {[%emt 0:0:0]} 37. Kxe1 {[%emt 0:0:25]} b4 {[%emt 0:0:4]} 38. Nf3 {[%emt 0:0:25]} b3 {[%emt 0:0:8]} 39. Nd3 {[%emt 0:0:16]} a3 {[%emt 0:0:7]} 40. Bc1 {[%emt 0:0:0]} b2 {[%emt 0:0:10]} 41. Nxb2 {[%emt 0:0:5]} axb2 {[%emt 0:0:4]} 42. Bxb2 {[%emt 0:0:1]} Rxa1+ {[%emt 0:0:5]} 43. Bxa1 {[%emt 0:0:1]} d3 {[%emt 0:0:3]
} 44. Bc3 {[%emt 0:0:15]} fxe6 {[%emt 0:0:26]} 45. fxe6 {[%emt 0:0:1]
} Re8 {[%emt 0:0:10]} 46. Kd2 {[%emt 0:0:12]} Bc5 {[%emt 0:0:0]} 47. Ng5 {[%emt 0:0:36]} Bxf2 {[%emt 0:0:18]} 48. Kxd3 {[%emt 0:0:6]} Bh4 {[%emt 0:0:9]} 49. Nf3 {[%emt 0:0:2]} Bd8 {[%emt 0:0:6]} 50. Ke4 {[%emt 0:0:22]
} Rxe6+ {[%emt 0:0:4]} 51. Kf4 {[%emt 0:0:0]} Bc7+ {[%emt 0:0:0]} 52. Kg4 {[%emt 0:0:2]} Re4+ {[%emt 0:0:3]} 0-1

[Event "FIDE World Rapid-ch Open 2018"]
[White "Sanal, Vahap"]
[Black "Dreev, Aleksey"]
[Site "St. Petersburg"]
[Round "1.47"]
[Annotator "ChessBase"]
[Result "1/2-1/2"]
[Date "2018.12.26"]
[WhiteElo "2490"]
[BlackElo "2670"]
[PlyCount "101"]
[TimeControl "900+10"]

1. e4 {[%emt 0:0:0]} c6 {[%emt 0:0:0]} 2. d4 {[%emt 0:0:0]} d5 {[%emt 0:0:0]} 3. Nc3 {[%emt 0:0:0]} dxe4 4. Nxe4 {[%emt 0:0:0]} Bf5 {[%emt 0:0:0]} 5. Ng3 {[%emt 0:0:2]} Bg6 {[%emt 0:0:1]} 6. h4 {[%emt 0:0:1]} h6 {[%emt 0:0:1]
} 7. Nf3 {[%emt 0:0:2]} Nd7 {[%emt 0:0:5]} 8. h5 {[%emt 0:0:0]} Bh7 {[%emt 0:0:1]} 9. Bd3 {[%emt 0:0:2]} Bxd3 10. Qxd3 {[%emt 0:0:1]
} e6 {[%emt 0:0:3]} 11. Bd2 {[%emt 0:0:5]} Ngf6 {[%emt 0:0:3]} 12. 0-0-0 {[%emt 0:0:3]} Be7 {[%emt 0:0:2]} 13. Ne4 {[%emt 0:0:8]} Nxe4 {[%emt 0:0:0]} 14. Qxe4 {[%emt 0:0:2]} Nf6 {[%emt 0:0:2]} 15. Qe2 {[%emt 0:0:7]} Qd5 {[%emt 0:0:6]} 16. c4 {[%emt 0:0:1]} Qe4 {[%emt 0:0:2]} 17. Qxe4 {[%emt 0:0:15]
} Nxe4 {[%emt 0:0:1]} 18. Be3 {[%emt 0:0:4]} 0-0 {[%emt 0:0:0]} 19. Ne5 {[%emt 0:1:50]} Rfd8 {[%emt 0:0:45]} 20. g4 {[%emt 0:2:46]} Bf6 {[%emt 0:2:43]} 21. f3 {[%emt 0:0:47]} Nd6 {[%emt 0:0:5]} 22. b3 {[%emt 0:0:0]} b5 {[%emt 0:3:53]} 23. c5 {[%emt 0:2:48]} Bxe5 {[%emt 0:0:2]} 24. dxe5 {[%emt 0:0:2]} Ne8 {[%emt 0:0:1]} 25. Bf2 {[%emt 0:1:57]} Nc7 {[%emt 0:5:18]
} 26. Rd6 {[%emt 0:0:10]} Nd5 {[%emt 0:0:2]} 27. Be1 {[%emt 0:0:0]} Rxd6 {[%emt 0:0:25]} 28. cxd6 {[%emt 0:2:35]} f6 {[%emt 0:1:23]} 29. exf6 {[%emt 0:0:57]} Nxf6 {[%emt 0:1:5]} 30. Ba5 {[%emt 0:0:14]} Kf7 {[%emt 0:0:8]
} 31. Kd2 {[%emt 0:0:46]} e5 {[%emt 0:0:46]} 32. Rc1 {[%emt 0:0:0]} e4 {[%emt 0:1:40]} 33. Ke2 {[%emt 0:0:56]} exf3+ {[%emt 0:0:10]} 34. Kxf3 {[%emt 0:0:1]} Nd7 {[%emt 0:0:38]} 35. b4 {[%emt 0:1:4]} Ke6 {[%emt 0:0:5]
} 36. Bc7 {[%emt 0:0:7]} Rf8+ {[%emt 0:0:5]} 37. Kg3 {[%emt 0:0:10]
} Kd5 {[%emt 0:0:28]} 38. Rd1+ {[%emt 0:0:21]} Kc4 {[%emt 0:0:0]} 39. a3 {[%emt 0:0:10]} Rf7 {[%emt 0:0:6]} 40. Re1 {[%emt 0:0:6]} Nf6 {[%emt 0:0:4]} 41. Re7 {[%emt 0:0:31]} Rxe7 {[%emt 0:0:1]} 42. dxe7 {[%emt 0:0:1]
} Kd5 {[%emt 0:0:0]} 43. Bb8 {[%emt 0:0:43]} a6 {[%emt 0:0:0]} 44. Ba7 {[%emt 0:0:4]} Ke6 {[%emt 0:0:30]} 45. Bc5 {[%emt 0:0:5]} Kf7 {[%emt 0:0:12]} 46. Kf4 {[%emt 0:0:9]} Nd7 {[%emt 0:0:24]} 47. Bd6 {[%emt 0:0:9]
} Nb6 {[%emt 0:0:6]} 48. Bc5 {[%emt 0:0:26]} Nd7 {[%emt 0:0:0]} 49. Bd6 {[%emt 0:0:1]} Nb6 {[%emt 0:0:1]} 50. Bc5 {[%emt 0:0:2]} Nd7 {[%emt 0:0:1]} 51. Bd6 {[%emt 0:0:1]} 1/2-1/2

[Event "FIDE World Rapid-ch Open 2018"]
[White "Grachev, Boris"]
[Black "Zakhartsov, Vladimir"]
[Site "St. Petersburg"]
[Round "1.48"]
[Annotator "ChessBase"]
[Result "1-0"]
[Date "2018.12.26"]
[WhiteElo "2626"]
[BlackElo "2486"]
[PlyCount "219"]
[TimeControl "900+10"]

1. d4 {[%emt 0:0:0]} Nf6 {[%emt 0:1:21]} 2. Nf3 {[%emt 0:0:5]} g6 {[%emt 0:0:35]
} 3. Nbd2 {[%emt 0:0:24]} d5 {[%emt 0:0:5]} 4. e3 {[%emt 0:0:0]} Bg7 {[%emt 0:0:9]} 5. b4 {[%emt 0:0:10]} a5 {[%emt 0:0:30]} 6. b5 {[%emt 0:0:9]
} c5 {[%emt 0:0:1]} 7. bxc6 {[%emt 0:0:41]} Nxc6 {[%emt 0:0:0]} 8. Bb5 {[%emt 0:0:56]} 0-0 {[%emt 0:0:5]} 9. 0-0 {[%emt 0:0:3]} Bf5 {[%emt 0:0:14]
} 10. Bxc6 {[%emt 0:1:43]} bxc6 {[%emt 0:0:3]} 11. Ba3 {[%emt 0:0:5]
} Rb8 {[%emt 0:0:24]} 12. Ne5 {[%emt 0:1:6]} Qc7 {[%emt 0:0:0]} 13. h3 {[%emt 0:0:3]} Ne4 {[%emt 0:0:34]} 14. Nxe4 {[%emt 0:0:6]} Bxe4 {[%emt 0:0:2]} 15. Nd3 {[%emt 0:0:7]} Bxd3 {[%emt 0:0:15]} 16. cxd3 {[%emt 0:0:15]
} Rfc8 {[%emt 0:0:37]} 17. Rc1 {[%emt 0:0:10]} Rb5 {[%emt 0:0:0]} 18. Rc2 {[%emt 0:0:26]} e5 {[%emt 0:1:28]} 19. dxe5 {[%emt 0:0:4]} Bxe5 {[%emt 0:0:2]} 20. d4 {[%emt 0:0:18]} Bd6 {[%emt 0:0:6]} 21. Bxd6 {[%emt 0:0:7]
} Qxd6 {[%emt 0:0:2]} 22. Qd3 {[%emt 0:0:2]} Rcb8 {[%emt 0:0:0]} 23. Rfc1 {[%emt 0:0:3]} R8b6 {[%emt 0:0:24]} 24. Rc5 {[%emt 0:1:28]
} Qb8 {[%emt 0:0:20]} 25. Rxb5 {[%emt 0:2:19]} Rxb5 {[%emt 0:0:3]} 26. g3 {[%emt 0:0:12]
} Qb7 {[%emt 0:1:11]} 27. Qc2 {[%emt 0:0:49]} Rb6 {[%emt 0:0:0]} 28. Kg2 {[%emt 0:1:12]} Qa6 {[%emt 0:0:22]} 29. Qc5 {[%emt 0:0:40]} Kg7 {[%emt 0:0:4]} 30. Qd6 {[%emt 0:2:8]} a4 {[%emt 0:3:7]} 31. a3 {[%emt 0:0:0]} Qa8 {[%emt 0:0:49]} 32. Qe5+ {[%emt 0:0:55]} Kg8 {[%emt 0:0:10]} 33. Qc7 {[%emt 0:0:56]} Qa6 {[%emt 0:0:22]} 34. g4 {[%emt 0:0:33]} h6 {[%emt 0:0:0]} 35. Qd8+ {[%emt 0:0:45]} Kg7 {[%emt 0:0:16]} 36. Qd6 {[%emt 0:0:8]} Qd3 {[%emt 0:1:19]} 37. Qe5+ {[%emt 0:0:24]} Kh7 {[%emt 0:0:36]} 38. Qf6 {[%emt 0:0:11]
} Qe4+ {[%emt 0:0:2]} 39. Kg3 {[%emt 0:0:22]} Qe8 {[%emt 0:0:0]} 40. Rc5 {[%emt 0:0:17]} Kg8 {[%emt 0:0:34]} 41. Rxd5 {[%emt 0:0:30]} cxd5 {[%emt 0:0:30]} 42. Qxb6 {[%emt 0:0:1]} Qe7 {[%emt 0:0:20]} 43. Qc5 {[%emt 0:0:7]
} Qd7 {[%emt 0:0:28]} 44. f3 {[%emt 0:0:23]} Qe6 {[%emt 0:0:0]} 45. Kf2 {[%emt 0:0:5]} g5 {[%emt 0:0:10]} 46. Ke2 {[%emt 0:0:16]} Qa6+ {[%emt 0:0:4]} 47. Kd2 {[%emt 0:0:12]} Qb7 {[%emt 0:0:3]} 48. Qb4 {[%emt 0:0:15]
} Qa6 {[%emt 0:0:33]} 49. Qb8+ {[%emt 0:0:3]} Kh7 {[%emt 0:0:0]} 50. Qc7 {[%emt 0:0:4]} Qf6 {[%emt 0:1:4]} 51. Ke2 {[%emt 0:0:7]} Qa6+ {[%emt 0:0:7]} 52. Kf2 {[%emt 0:0:1]} Qe6 {[%emt 0:0:8]} 53. Qc2+ {[%emt 0:0:3]
} Kg7 {[%emt 0:0:9]} 54. Qxa4 {[%emt 0:0:12]} Qd6 {[%emt 0:0:0]} 55. Kg2 {[%emt 0:0:3]} Qb6 {[%emt 0:0:24]} 56. Qc2 {[%emt 0:0:7]} Qa5 {[%emt 0:0:4]} 57. Qd3 {[%emt 0:0:39]} Qe1 {[%emt 0:0:11]} 58. e4 {[%emt 0:0:0]} Qa1 {[%emt 0:0:3]} 59. exd5 {[%emt 0:0:8]} Qa2+ {[%emt 0:0:1]} 60. Kg1 {[%emt 0:0:3]} Qxd5 {[%emt 0:0:5]} 61. Qc3 {[%emt 0:0:14]} h5 {[%emt 0:0:23]
} 62. gxh5 {[%emt 0:0:15]} Kh6 {[%emt 0:0:9]} 63. Qe3 {[%emt 0:0:6]
} Qf5 {[%emt 0:0:26]} 64. h4 {[%emt 0:0:22]} Qb1+ {[%emt 0:0:0]} 65. Kg2 {[%emt 0:0:3]} Qc2+ {[%emt 0:0:4]} 66. Kh3 {[%emt 0:0:23]} Qc8+ {[%emt 0:0:11]} 67. Kg3 {[%emt 0:0:4]} Qc7+ {[%emt 0:0:10]} 68. Qe5 {[%emt 0:0:10]
} gxh4+ 69. Kxh4 {[%emt 0:0:3]} Qd8+ {[%emt 0:0:3]} 70. Kg3 {[%emt 0:0:6]
} Qg8+ {[%emt 0:0:13]} 71. Kf2 {[%emt 0:0:5]} Qd8 {[%emt 0:0:0]} 72. Qf4+ {[%emt 0:0:10]} Kxh5 {[%emt 0:0:12]} 73. Qxf7+ {[%emt 0:0:6]} Kh6 {[%emt 0:0:2]} 74. Qe6+ {[%emt 0:0:10]} Kh7 {[%emt 0:0:5]} 75. Qe4+ {[%emt 0:0:13]
} Kh6 {[%emt 0:0:8]} 76. Kg3 {[%emt 0:0:8]} Qg5+ {[%emt 0:0:0]} 77. Qg4 {[%emt 0:0:5]} Qa5 {[%emt 0:0:9]} 78. Qe6+ {[%emt 0:0:12]} Kh7 {[%emt 0:0:2]} 79. Qe7+ {[%emt 0:0:7]} Kg6 {[%emt 0:0:14]} 80. d5 {[%emt 0:0:16]
} Qc3 {[%emt 0:0:28]} 81. Qe4+ {[%emt 0:0:4]} Kf7 {[%emt 0:0:0]} 82. a4 {[%emt 0:0:7]} Qa1 {[%emt 0:0:11]} 83. Qf4+ {[%emt 0:0:23]} Ke8 {[%emt 0:0:9]} 84. Qe3+ {[%emt 0:0:5]} Kd7 {[%emt 0:0:7]} 85. Qe6+ {[%emt 0:0:35]
} Kd8 {[%emt 0:0:1]} 86. Qd6+ {[%emt 0:0:3]} Ke8 {[%emt 0:0:0]} 87. Qc6+ {[%emt 0:0:2]} Kd8 {[%emt 0:0:6]} 88. Qb6+ {[%emt 0:0:12]} Kd7 {[%emt 0:0:10]} 89. Qb5+ {[%emt 0:0:7]} Kd8 {[%emt 0:0:7]} 90. Kg2 {[%emt 0:0:28]
} Qa2+ {[%emt 0:0:11]} 91. Kf1 {[%emt 0:0:8]} Qa1+ {[%emt 0:0:0]} 92. Ke2 {[%emt 0:0:2]} Qe5+ {[%emt 0:0:4]} 93. Kf1 {[%emt 0:0:4]} Qa1+ {[%emt 0:0:5]} 94. Kf2 {[%emt 0:0:28]} Qd4+ {[%emt 0:0:3]} 95. Kg3 {[%emt 0:0:5]
} Qg7+ {[%emt 0:0:35]} 96. Kf4 {[%emt 0:0:4]} Qh6+ {[%emt 0:0:0]} 97. Ke4 {[%emt 0:0:8]} Qg6+ {[%emt 0:0:5]} 98. Ke3 {[%emt 0:0:6]} Qg1+ {[%emt 0:0:9]} 99. Ke4 {[%emt 0:0:20]} Qg6+ {[%emt 0:0:6]} 100. Kd4 {[%emt 0:0:18]
} Qf6+ {[%emt 0:0:4]} 101. Kc5 {[%emt 0:0:10]} Qc3+ {[%emt 0:0:0]} 102. Qc4 {[%emt 0:0:13]} Qe3+ {[%emt 0:0:21]} 103. Kb5 {[%emt 0:0:0]} Qxf3 {[%emt 0:0:6]} 104. a5 {[%emt 0:0:1]} Qd1 {[%emt 0:0:12]} 105. Kc6 {[%emt 0:0:14]} Qe1 {[%emt 0:0:12]} 106. Qc5 {[%emt 0:0:14]} Qe8+ {[%emt 0:0:9]
} 107. Kb6 {[%emt 0:0:2]} Qg6+ {[%emt 0:0:8]} 108. d6 {[%emt 0:0:17]
} Qb1+ {[%emt 0:0:5]} 109. Ka7 {[%emt 0:0:3]} Qh7+ {[%emt 0:0:0]} 110. Kb8 {[%emt 0:0:5]} 1-0

[Event "FIDE World Rapid-ch Open 2018"]
[White "Teterev, Vitaly"]
[Black "Timofeev, Artyom"]
[Site "St. Petersburg"]
[Round "1.49"]
[Annotator "ChessBase"]
[Result "0-1"]
[Date "2018.12.26"]
[WhiteElo "2486"]
[BlackElo "2589"]
[PlyCount "72"]
[TimeControl "900+10"]

1. Nf3 {[%emt 0:0:0]} c5 {[%emt 0:0:0]} 2. e4 {[%emt 0:0:0]} Nc6 {[%emt 0:0:1]
} 3. Bb5 {[%emt 0:0:1]} d6 {[%emt 0:0:19]} 4. 0-0 {[%emt 0:0:0]} Bd7 {[%emt 0:0:3]} 5. Re1 {[%emt 0:0:2]} Nf6 {[%emt 0:0:28]} 6. c3 {[%emt 0:0:5]
} a6 {[%emt 0:0:3]} 7. Bf1 {[%emt 0:0:2]} Bg4 {[%emt 0:0:13]
} 8. d4 {[%emt 0:0:21]} cxd4 {[%emt 0:1:6]} 9. cxd4 {[%emt 0:0:1]} e5 {[%emt 0:0:2]
} 10. d5 {[%emt 0:0:3]} Nd4 {[%emt 0:0:4]} 11. Be3 {[%emt 0:0:0]} Nxf3+ {[%emt 0:0:24]} 12. gxf3 {[%emt 0:0:1]} Bd7 {[%emt 0:0:2]} 13. a4 {[%emt 0:0:55]} Be7 {[%emt 0:0:7]} 14. Qb3 {[%emt 0:0:1]} 0-0 {[%emt 0:0:39]
} 15. Qxb7 {[%emt 0:0:39]} Nh5 {[%emt 0:0:4]} 16. Nd2 {[%emt 0:1:0]
} Bg5 {[%emt 0:0:16]} 17. Bg2 {[%emt 0:1:28]} f5 {[%emt 0:0:0]} 18. exf5 {[%emt 0:6:56]} Bxf5 {[%emt 0:0:13]} 19. Nf1 {[%emt 0:0:21]} Bd3 {[%emt 0:0:57]} 20. Ng3 {[%emt 0:1:5]} Rb8 {[%emt 0:0:23]} 21. Qc6 {[%emt 0:0:18]
} Bxe3 {[%emt 0:0:11]} 22. fxe3 {[%emt 0:1:7]} Nxg3 {[%emt 0:0:0]} 23. hxg3 {[%emt 0:0:3]} Qg5 {[%emt 0:0:6]} 24. Qxd6 {[%emt 0:1:37]
} Qxg3 {[%emt 0:0:22]} 25. Qe6+ {[%emt 0:0:9]} Kh8 {[%emt 0:0:2]} 26. Qg4 {[%emt 0:0:29]} Qxg4 {[%emt 0:0:11]} 27. fxg4 {[%emt 0:0:1]} Rxb2 {[%emt 0:0:0]} 28. Bf1 {[%emt 0:0:55]} Be4 {[%emt 0:0:48]} 29. d6 {[%emt 0:0:47]} Bf3 {[%emt 0:0:33]} 30. Ra3 {[%emt 0:0:42]} e4 {[%emt 0:0:14]} 31. Rc3 {[%emt 0:0:34]
} Rd2 {[%emt 0:0:11]} 32. d7 {[%emt 0:0:11]} Rxd7 {[%emt 0:0:0]} 33. Bxa6 {[%emt 0:0:6]} h5 {[%emt 0:1:51]} 34. gxh5 {[%emt 0:0:19]} Rf5 {[%emt 0:0:12]} 35. Rc2 {[%emt 0:0:11]} Rg5+ {[%emt 0:0:21]} 36. Kh2 {[%emt 0:0:9]
} Rd6 {[%emt 0:0:7]} 0-1

[Event "FIDE World Rapid-ch Open 2018"]
[White "Kovalenko, Igor"]
[Black "Drygalov, Sergey"]
[Site "St. Petersburg"]
[Round "1.50"]
[Annotator "ChessBase"]
[Result "1/2-1/2"]
[Date "2018.12.26"]
[WhiteElo "2657"]
[BlackElo "2446"]
[PlyCount "107"]
[TimeControl "900+10"]

1. d4 {[%emt 0:0:0]} d5 {[%emt 0:0:0]} 2. Nf3 {[%emt 0:0:0]} Nf6 {[%emt 0:0:0]
} 3. c4 {[%emt 0:0:1]} c6 {[%emt 0:0:0]} 4. Nc3 {[%emt 0:0:0]} e6 {[%emt 0:0:7]} 5. cxd5 {[%emt 0:0:14]} exd5 {[%emt 0:0:41]} 6. Qc2 {[%emt 0:0:1]} g6 {[%emt 0:1:17]} 7. Bg5 {[%emt 0:0:2]} Be7 {[%emt 0:0:0]} 8. e3 {[%emt 0:0:20]} Bf5 {[%emt 0:0:7]} 9. Qb3 {[%emt 0:0:2]} Qb6 {[%emt 0:0:20]
} 10. Nd2 {[%emt 0:0:2]} Nbd7 {[%emt 0:0:7]} 11. h3 {[%emt 0:0:0]} Qxb3 {[%emt 0:0:46]} 12. Nxb3 {[%emt 0:0:2]} h6 {[%emt 0:0:10]} 13. Bf4 {[%emt 0:0:3]} g5 {[%emt 0:0:36]} 14. Bh2 {[%emt 0:0:4]} a5 {[%emt 0:0:0]} 15. a3 {[%emt 0:0:11]} b5 {[%emt 0:0:41]} 16. f3 {[%emt 0:3:39]} 0-0 {[%emt 0:0:42]} 17. Be2 {[%emt 0:0:26]} Nb6 {[%emt 0:1:58]} 18. Nc5 {[%emt 0:3:13]
} Bxc5 19. dxc5 Nc4 {[%emt 0:4:4]} 20. Bxc4 {[%emt 0:0:9]} bxc4 {[%emt 0:0:3]} 21. Na4 {[%emt 0:0:24]} Rfe8 {[%emt 0:0:31]} 22. Kf2 {[%emt 0:1:2]
} Ra7 {[%emt 0:0:9]} 23. Rac1 {[%emt 0:0:21]} Rb7 {[%emt 0:0:0]} 24. Rhd1 {[%emt 0:1:47]} Bd3 {[%emt 0:1:14]} 25. Rd2 {[%emt 0:0:13]} Kg7 {[%emt 0:1:11]} 26. Rc3 {[%emt 0:0:9]} Bg6 {[%emt 0:0:27]} 27. Bd6 {[%emt 0:0:51]
} Nd7 {[%emt 0:0:27]} 28. Rc1 {[%emt 0:0:26]} Rb5 {[%emt 0:0:0]} 29. Re1 {[%emt 0:1:18]} Ne5 {[%emt 0:0:27]} 30. Bxe5+ {[%emt 0:0:3]} Rxe5 {[%emt 0:0:1]} 31. Rc1 {[%emt 0:2:8]} Re7 {[%emt 0:0:38]} 32. g3 {[%emt 0:1:11]
} Bd3 {[%emt 0:0:49]} 33. Rc3 Reb7 {[%emt 0:0:13]} 34. Ke1 {[%emt 0:1:31]
} Kf6 {[%emt 0:0:14]} 35. Kf2 {[%emt 0:0:7]} Ke6 {[%emt 0:0:0]} 36. Rc1 {[%emt 0:0:2]} Rb8 {[%emt 0:0:13]} 37. Rh1 {[%emt 0:0:4]} f5 {[%emt 0:0:51]} 38. g4 {[%emt 0:0:1]} Rf8 {[%emt 0:0:6]} 39. Kg3 {[%emt 0:0:0]} Rb7 {[%emt 0:0:12]} 40. Nb6 {[%emt 0:0:21]} Rbf7 {[%emt 0:0:15]} 41. Rf2 {[%emt 0:0:1]} fxg4 {[%emt 0:0:8]} 42. hxg4 {[%emt 0:0:7]} Rxf3+ {[%emt 0:0:1]
} 43. Rxf3 {[%emt 0:0:5]} Rxf3+ {[%emt 0:0:2]} 44. Kxf3 Be4+ 45. Kf2 {[%emt 0:0:14]} Bxh1 {[%emt 0:0:2]} 46. Nc8 {[%emt 0:0:1]} Be4 {[%emt 0:0:26]
} 47. Nd6 {[%emt 0:0:1]} Bc2 {[%emt 0:0:10]} 48. Nb7 {[%emt 0:0:0]} a4 {[%emt 0:0:2]} 49. Nd8+ {[%emt 0:0:3]} Kd7 {[%emt 0:0:21]} 50. Nf7 {[%emt 0:0:1]} Ke6 {[%emt 0:0:35]} 51. Nd8+ {[%emt 0:0:1]} Kd7 {[%emt 0:0:2]
} 52. Nf7 {[%emt 0:0:5]} Ke6 {[%emt 0:0:5]} 53. Nd8+ {[%emt 0:0:44]
} Kd7 {[%emt 0:0:1]} 54. Nf7 {[%emt 0:0:4]} 1/2-1/2